fUST/lending_fUST_20251030
["ID","MTS","AMOUNT","RATE_DAILY","PERIOD"]
[392689610,1761813354043,-2510.70505341,0.000488,120]
[392689611,1761813354069,-30000.0,0.000488,120]
[392689612,1761813354095,-2000.0,0.000489,120]
[392689613,1761813354122,-2004.39037301,0.000489,120]
[392689614,1761813354149,-4277.97119416,0.000489,30]
[392689615,1761813354177,-1000.0,0.00049,120]
[392689616,1761813354206,-10000.0,0.00049,90]
[392689617,1761813354234,-151.46634922,0.00049,120]
[392689618,1761813354262,-200.0,0.00049145,120]
[392689619,1761813354291,-200.0,0.00049145,120]
[392689620,1761813354319,-200.0,0.00049145,120]
[392689621,1761813354451,-200.0,0.00049145,120]
[392689622,1761813354478,-200.0,0.00049145,120]
[392689623,1761813354507,-201.97205346,0.00049145,120]
[392689624,1761813354542,-500.0,0.00049315,120]
[392689625,1761813354569,-500.0,0.00049315,120]
[392689626,1761813354594,-500.0,0.00049315,120]
[392689627,1761813354619,-511.257787,0.00049315,120]
[392689628,1761813354647,-1000.0,0.00049322,90]
[392689629,1761813354678,-791.0,0.00049322,90]
[392689630,1761813354706,-7947.69644788,0.00049357,120]
[392689631,1761813354732,-9325.35862433,0.00049374,120]
[392689632,1761813354756,-2147.99909,0.00049381,120]
[392689633,1761813354781,-1876738.86825543,0.00049444,30]
[392689634,1761813367872,-300.0,0.00027825,30]
[392689635,1761813367903,-300.0,0.00027825,30]
[392689636,1761813367936,-300.0,0.00027825,30]
[392689637,1761813367966,-300.0,0.00027825,30]
[392689638,1761813367996,-300.0,0.00027825,30]
[392689639,1761813368027,-300.0,0.00027825,30]
[392689640,1761813368056,-300.0,0.00027825,30]
[392689641,1761813368086,-300.0,0.00027825,30]
[392689642,1761813368117,-300.0,0.00027825,30]
[392689643,1761813368149,-300.0,0.00027825,30]
[392689644,1761813368179,-300.0,0.00027825,30]
[392689645,1761813368208,-300.0,0.00027825,30]
[392689646,1761813368237,-300.0,0.00027825,30]
[392689647,1761813368265,-300.0,0.00027825,30]
[392689648,1761813368301,-2345330.39584457,0.00049444,30]
[392689649,1761813368326,-473998.3545,0.00049444,30]
[392689650,1761813368352,-152.0,0.000497,120]
[392689651,1761813368378,-666.91872299,0.0004989,120]
[392689652,1761813368402,-30480.16061741,0.000499,120]
[392689653,1761813368428,-1000.0,0.00049999,120]
[392689654,1761813368453,-2000.0,0.0005,120]
[392689655,1761813368478,-200.0,0.0005,120]
[392689656,1761813368501,-551.35026871,0.0005,120]
[392689657,1761813368527,-1000.0,0.0005,120]
[392689658,1761813368551,-150.0,0.0005,120]
[392689659,1761813368576,-220.73357437,0.0005,30]
[392689660,1761813368600,-18328.45496021,0.0005,120]
[392689661,1761813368625,-4915.61393397,0.0005,120]
[392689662,1761813368650,-2498.28338682,0.0005,120]
[392689663,1761813368675,-253340.28724709,0.0005,120]
[392689664,1761813368699,-1265.2809186,0.0005,120]
[392689665,1761813368724,-1695.39896478,0.0005,120]
[392689666,1761813368750,-2040.55059676,0.0005,120]
[392689667,1761813368775,-10896.2298159,0.0005,120]
[392689668,1761813368799,-877.0,0.0005,120]
[392689669,1761813368826,-455.84,0.00050417,120]
[392689670,1761813368851,-2000.0,0.000509,120]
[392689671,1761813368881,-150.0,0.00050916,30]
[392689672,1761813368906,-3000.0,0.00051,85]
[392689673,1761813368931,-3000.0,0.0005101,85]
[392689674,1761813368959,-3000.0,0.0005102,85]
[392689675,1761813368984,-3000.0,0.0005103,85]
[392689676,1761813369010,-3000.0,0.0005104,85]
[392689677,1761813369035,-3000.0,0.0005105,85]
[392689678,1761813369062,-3000.0,0.0005106,85]
[392689679,1761813369088,-3000.0,0.0005107,85]
[392689680,1761813369114,-3045.899336,0.0005108,85]
[392689681,1761813369140,-274.36,0.00051286,30]
[392689682,1761813369166,-798.74,0.000513,120]
[392689683,1761813369201,300.0,0.00027825,30]
[392689684,1761813369246,600.0,0.00027825,30]
[392689685,1761813369477,720.0,0.00030608,30]
[392689686,1761813369955,864.0,0.00033668,30]
[392689687,1761813370432,1000.0,0.00037035,30]
[392689688,1761813370908,1000.0,0.00040739,90]
[392689689,1761813371174,808984.14731182,0.00049444,30]
[392689690,1761813374850,-244.0,0.00040739,90]
[392689691,1761813374894,-1000.0,0.00044813,90]
[392689692,1761813374925,-492.0,0.00044813,90]
[392689693,1761813374961,-1000.0,0.00049294,90]
[392689694,1761813374990,-791.0,0.00049294,90]
[392689695,1761813375016,-2752112.30178818,0.00049444,30]
[392689696,1761813455156,500.0,0.00034935,60]
[392689697,1761813455391,472.24319998,0.00034935,60]
[392689698,1761813468767,27649.47646587,0.00034935,60]
[392689699,1761813490531,257.15932289,0.00034935,120]
[392689701,1761813571928,138.48518503,0.00020631,2]
[392689702,1761813571952,11.51481497,0.00020631,2]
[392689703,1761813572357,253.61,0.00022506,2]
[392689704,1761813572820,380.41,0.00024382,2]
[392689705,1761813652671,150.0,0.0002064,2]
[392689706,1761813653146,233.65,0.00022517,2]
[392689707,1761813653591,350.47,0.00024393,2]
[392689708,1761813670624,2000.0,0.00034935,60]
[392689709,1761813703259,852.59,0.00034935,60]
[392689710,1761813703515,852.59,0.00034935,60]
[392689711,1761813703770,852.59,0.00034935,60]
[392689712,1761813704022,852.59,0.00034935,60]
[392689713,1761813704360,2000.0,0.00034935,60]
[392689714,1761813704672,852.59,0.00034935,60]
[392689715,1761813704934,852.59,0.00034935,60]
[392689716,1761813705195,852.59,0.00034935,60]
[392689717,1761813705450,852.59,0.00034935,60]
[392689718,1761813705699,852.59,0.00034935,60]
[392689719,1761813705963,852.59,0.00034935,60]
[392689720,1761813706253,852.59,0.00034935,60]
[392689721,1761813706718,852.59,0.00034935,60]
[392689722,1761813707395,852.59,0.00034935,60]
[392689723,1761813707655,852.59,0.00034935,60]
[392689724,1761813707903,852.59,0.00034935,60]
[392689725,1761813708160,852.59,0.00034935,60]
[392689726,1761813708405,852.59,0.00034935,60]
[392689727,1761813708684,852.59,0.00034935,60]
[392689728,1761813708953,852.59,0.00034935,60]
[392689729,1761813709281,852.59,0.00034935,60]
[392689730,1761813709521,852.59,0.00034935,60]
[392689731,1761813709903,852.59,0.00034935,60]
[392689732,1761813710108,852.59,0.00034935,60]
[392689733,1761813710361,852.79884219,0.00034935,60]
[392689734,1761813732164,150.0,0.00020343,2]
[392689735,1761813732613,214.96,0.00022193,2]
[392689736,1761813733077,322.44,0.00024042,2]
[392689737,1761813739608,2000.0,0.00034935,60]
[392689738,1761813773286,2000.0,0.00035458,60]
[392689740,1761813807641,1615.35632939,0.00035458,60]
[392689741,1761813812502,150.0,0.00020323,2]
[392689742,1761813812936,197.47,0.00022171,2]
[392689743,1761813813415,296.2,0.00024018,2]
[392689744,1761813893710,150.0,0.00020326,2]
[392689745,1761813894181,181.08,0.00022174,2]
[392689746,1761813894618,271.62,0.00024022,2]
[392689754,1761813972867,150.0,0.00020312,2]
[392689755,1761813973317,165.74,0.00022158,2]
[392689756,1761813973770,248.61,0.00024005,2]
[392689757,1761814029209,409.106119,0.00013699,2]
[392689758,1761814029404,409.106119,0.00020187,2]
[392689759,1761814034126,-177.08671442,0.00025822,2]
[392689760,1761814050072,-322.91328558,0.00025822,2]
[392689761,1761814050092,-500.0,0.00025822,2]
[392689762,1761814050111,-164.56185993,0.00026,2]
[392689763,1761814050133,-300.0,0.00026076,2]
[392689764,1761814050154,-12054.7887209,0.00026077,2]
[392689765,1761814050173,-1492.4864992,0.0002619,2]
[392689766,1761814050193,-409.106119,0.00026676,2]
[392689767,1761814050212,-1245.06835416,0.00027,2]
[392689768,1761814050233,-1200.0,0.00027096,2]
[392689769,1761814050253,-1953.25384563,0.00027122,2]
[392689770,1761814050273,-205.92173437,0.00027194,2]
[392689771,1761814050293,-300.0,0.00027272,2]
[392689772,1761814050313,-500.0,0.00027273,2]
[392689773,1761814050337,-151.0,0.00027281,2]
[392689774,1761814050357,-151.0,0.00027281,2]
[392689775,1761814050378,-151.0,0.00027281,2]
[392689776,1761814050397,-151.0,0.00027281,2]
[392689777,1761814050418,-151.0,0.00027281,2]
[392689778,1761814050438,-151.0,0.00027281,2]
[392689779,1761814050456,-151.0,0.00027281,2]
[392689780,1761814050476,-151.0,0.00027281,2]
[392689781,1761814050495,-151.0,0.00027281,2]
[392689782,1761814050516,-151.0,0.00027281,2]
[392689783,1761814050535,-151.0,0.00027281,2]
[392689784,1761814050555,-151.0,0.00027281,2]
[392689785,1761814050573,-151.0,0.00027281,2]
[392689786,1761814050596,-151.0,0.00027281,2]
[392689787,1761814050616,-151.0,0.00027281,2]
[392689788,1761814050645,-151.0,0.00027281,2]
[392689789,1761814050666,-151.0,0.00027281,2]
[392689790,1761814050686,-151.0,0.00027281,2]
[392689791,1761814050706,-151.0,0.00027281,2]
[392689792,1761814050728,-151.0,0.00027281,2]
[392689793,1761814050748,-403.56406439,0.00027281,2]
[392689794,1761814050767,-1275.3749857,0.00027283,2]
[392689795,1761814050786,-3572.7724594,0.00027287,2]
[392689796,1761814050806,-318.25,0.00027287,3]
[392689797,1761814050825,-159.13,0.00027287,3]
[392689798,1761814050843,-477.41,0.00027287,3]
[392689799,1761814050861,-493.31240523,0.00027294,2]
[392689800,1761814050882,-500.0,0.00027294,2]
[392689801,1761814050904,-500.0,0.00027294,2]
[392689802,1761814050924,-500.0,0.00027294,2]
[392689803,1761814050945,-500.0,0.00027294,2]
[392689804,1761814050964,-500.0,0.00027294,2]
[392689805,1761814050984,-500.0,0.00027294,2]
[392689806,1761814051003,-500.0,0.00027294,2]
[392689807,1761814051023,-500.0,0.00027294,2]
[392689808,1761814051042,-500.0,0.00027294,2]
[392689809,1761814051061,-506.72927252,0.00027294,2]
[392689810,1761814051084,-500.0,0.00027294,2]
[392689811,1761814051106,-500.0,0.00027294,2]
[392689812,1761814051126,-500.0,0.00027294,2]
[392689813,1761814051147,-500.0,0.00027294,2]
[392689814,1761814051167,-500.0,0.00027294,2]
[392689815,1761814051187,-298.76422198,0.00027294,2]
[392689816,1761814051207,-500.0,0.00027294,2]
[392689817,1761814051227,-500.0,0.00027294,2]
[392689818,1761814051249,-587.26827266,0.00027294,2]
[392689819,1761814051270,-500.0,0.00027294,2]
[392689820,1761814051291,-500.0,0.00027294,2]
[392689821,1761814051310,-333.23022876,0.00027294,2]
[392689822,1761814051333,-500.0,0.00027294,2]
[392689823,1761814051353,-343.84092151,0.00027294,2]
[392689824,1761814051375,-500.0,0.00027294,2]
[392689825,1761814051395,-500.0,0.00027294,2]
[392689826,1761814051419,-500.0,0.00027294,2]
[392689827,1761814051439,-500.0,0.00027294,2]
[392689828,1761814051459,-500.0,0.00027294,2]
[392689829,1761814051478,-500.0,0.00027294,2]
[392689830,1761814051499,-500.0,0.00027294,2]
[392689831,1761814051519,-500.0,0.00027294,2]
[392689832,1761814051541,-500.0,0.00027294,2]
[392689833,1761814051561,-500.0,0.00027294,2]
[392689834,1761814051582,-500.0,0.00027294,2]
[392689835,1761814051602,-500.0,0.00027294,2]
[392689836,1761814051622,-500.0,0.00027294,2]
[392689837,1761814051642,-500.0,0.00027294,2]
[392689838,1761814051663,-500.0,0.00027294,2]
[392689839,1761814051683,-500.0,0.00027294,2]
[392689840,1761814051702,-500.0,0.00027296,2]
[392689841,1761814051721,-280.40946749,0.00027296,2]
[392689842,1761814051740,-500.0,0.00027296,2]
[392689843,1761814051759,-307.02661688,0.00027296,2]
[392689844,1761814051780,-118080.90419645,0.00027297,2]
[392689845,1761814051831,150.0,0.00020726,2]
[392689846,1761814051990,151.37,0.0002261,2]
[392689847,1761814052395,227.06,0.00024494,2]
[392689849,1761814130357,150.0,0.00020755,2]
[392689850,1761814130779,150.0,0.00022642,2]
[392689851,1761814131223,206.89,0.00024529,2]
[392689853,1761814209607,150.0,0.00020759,2]
[392689854,1761814210011,150.0,0.00022646,2]
[392689855,1761814210432,187.53,0.00024534,2]
[392689877,1761814232506,-164.56185992,0.00026,2]
[392689879,1761814232515,-250.04,0.00026421,2]
[392689880,1761814232524,-500.0,0.00026973,2]
[392689882,1761814232534,-500.0,0.00026973,2]
[392689884,1761814232544,-300.0,0.00026988,2]
[392689886,1761814232554,-937.42442147,0.00026988,2]
[392689888,1761814232567,-262.57557853,0.00026988,2]
[392689890,1761814232577,-500.0,0.00026989,2]
[392689892,1761814232586,-537.02558097,0.00026989,2]
[392689894,1761814232595,-260.42676906,0.00026989,2]
[392689896,1761814232605,-500.0,0.00026989,2]
[392689898,1761814232614,-176.36314141,0.00026989,2]
[392689900,1761814232623,-3900.16964071,0.0002699,2]
[392689902,1761814232634,-796.800055,0.0002699,2]
[392689904,1761814232644,-3405.64277591,0.0002699,2]
[392689968,1761814239142,-29336.61891599,0.0002699,2]
[392689969,1761814239151,-157.14521273,0.00027097,2]
[392689970,1761814239160,-22508.4664942,0.00027187,2]
[392689971,1761814239169,-449.07409676,0.00027187,2]
[392689972,1761814239179,-500.0,0.00027196,2]
[392689973,1761814239189,-214.91863182,0.00027196,2]
[392689974,1761814239198,-479.23097672,0.00027196,2]
[392689975,1761814239207,-28077.74592696,0.00027197,2]
[392689976,1761814239219,-22304.41657418,0.00027197,2]
[392689977,1761814239231,-1073.04152829,0.00027197,2]
[392689978,1761814239242,-6752.77248503,0.00027197,2]
[392689979,1761814239253,-1139.20906924,0.00027197,2]
[392689980,1761814239268,-831.89074549,0.00027197,2]
[392689981,1761814239279,-9286.35036096,0.00027197,2]
[392690053,1761814240714,-4609.01328906,0.00027197,2]
[392690055,1761814240726,-18030.77743484,0.00027197,2]
[392690058,1761814240766,-331.33674966,0.00027197,2]
[392690070,1761814361273,150.0,0.00016137,30]
[392690071,1761814361686,150.0,0.00017604,30]
[392690072,1761814362245,150.0,0.00019072,30]
[392690073,1761814362710,150.0,0.00020539,30]
[392690074,1761814363176,150.0,0.00022006,30]
[392690075,1761814363580,150.0,0.00023473,30]
[392690076,1761814364033,159.37,0.0002494,30]
[392690077,1761814392975,3000.0,0.000248,2]
[392690078,1761814393336,3000.0,0.0002481,2]
[392690079,1761814393881,1946.22,0.0002482,2]
[392690080,1761814393907,1053.78,0.0002482,2]
[392690081,1761814394268,3000.0,0.0002483,2]
[392690082,1761814394635,3000.0,0.0002484,2]
[392690083,1761814394956,2946.23,0.0002485,2]
[392690084,1761814394980,53.77,0.0002485,2]
[392690085,1761814395271,3000.0,0.0002486,2]
[392690086,1761814395650,3000.0,0.0002487,2]
[392690087,1761814396063,3000.0,0.0002488,2]
[392690088,1761814396550,946.24,0.0002489,2]
[392690089,1761814396573,2053.76,0.0002489,2]
[392690090,1761814396912,3000.0,0.000249,2]
[392690091,1761814397348,3000.0,0.0002491,2]
[392690092,1761814397747,1946.25,0.0002492,2]
[392690093,1761814397770,1053.75,0.0002492,2]
[392690094,1761814398515,3000.0,0.0002493,2]
[392690095,1761814398844,3000.0,0.0002494,2]
[392690096,1761814399199,2946.26,0.0002495,2]
[392690097,1761814399221,53.74,0.0002495,2]
[392690098,1761814399783,3000.0,0.0002496,2]
[392690099,1761814400189,3000.0,0.0002497,2]
[392690100,1761814400594,3000.0,0.0002498,2]
[392690101,1761814400977,946.27,0.0002499,2]
[392690102,1761814401000,2053.73,0.0002499,2]
[392690103,1761814401363,3000.0,0.00025,2]
[392690104,1761814401729,3000.0,0.0002501,2]
[392690105,1761814402023,3000.0,0.0002502,2]
[392690106,1761814402052,1248.49439306,0.00025205,2]
[392690107,1761814402431,3000.0,0.0002503,2]
[392690108,1761814402760,2751.51560694,0.0002504,2]
[392690109,1761814402782,248.48439306,0.0002504,2]
[392690110,1761814403127,3000.0,0.0002505,2]
[392690111,1761814403512,3000.0,0.0002506,2]
[392690112,1761814403880,3000.0,0.0002507,2]
[392690113,1761814404257,751.52560694,0.0002508,2]
[392690114,1761814404278,2248.47439306,0.0002508,2]
[392690115,1761814404674,3000.0,0.0002509,2]
[392690116,1761814405058,3000.0,0.000251,2]
[392690117,1761814405450,1751.53560694,0.0002511,2]
[392690118,1761814405471,1525.43955406,0.0002511,2]
[392690119,1761814409901,204.83,0.00025205,2]
[392690120,1761814418145,5000.0,0.00025205,2]
[392690121,1761814429251,2465.16106222,0.00025205,2]
[392690122,1761814437947,150.0,0.0001335,30]
[392690123,1761814438360,150.0,0.00014563,30]
[392690124,1761814438816,150.0,0.00015777,30]
[392690125,1761814438883,203.75590937,0.00025205,2]
[392690126,1761814439233,150.0,0.00016991,30]
[392690127,1761814447246,1731.09302841,0.00025205,2]
[392690128,1761814447270,3268.90697159,0.00025205,2]
[392690129,1761814455453,5000.0,0.00025205,2]
[392690130,1761814463438,168.956402,0.00025205,2]
[392690131,1761814466736,300.0,0.000252,2]
[392690132,1761814471664,1262.14662641,0.00025205,2]
[392690133,1761814471688,3737.85337359,0.00025205,2]
[392690134,1761814477394,300.0,0.000252,2]
[392690135,1761814480488,5000.0,0.00025205,2]
[392690136,1761814497534,962.15662641,0.00025205,2]
[392690137,1761814497556,4037.84337359,0.00025205,2]
[392690138,1761814505960,3583.70569102,0.00025205,2]
[392690139,1761814521489,2378.46093539,0.00025205,2]
[392690140,1761814521515,2621.53906461,0.00025205,2]
[392690141,1761814521828,300.0,0.000252,2]
[392690142,1761814533414,300.0,0.000252,2]
[392690143,1761814544436,5000.0,0.00025205,2]
[392690144,1761814567631,5000.0,0.00025205,2]
[392690145,1761814584025,150.0,0.00015132,30]
[392690146,1761814584464,150.0,0.00016508,30]
[392690147,1761814584868,150.0,0.00017883,30]
[392690148,1761814585262,150.0,0.00019259,30]
[392690149,1761814591164,4400.01,0.00025205,2]
[392690150,1761814591189,599.99,0.00025205,2]
[392690151,1761814613765,5000.0,0.00025205,2]
[392690152,1761814636804,4400.02,0.00025205,2]
[392690153,1761814636828,599.98,0.00025205,2]
[392690154,1761814659329,150.0,0.00015133,30]
[392690155,1761814659743,150.0,0.00016509,30]
[392690156,1761814659773,5000.0,0.00025205,2]
[392690174,1761814682699,1863.60478691,0.00025205,2]
[392690175,1761814730120,150.0,0.00015142,30]
[392690177,1761814800544,150.0,0.00015141,30]
[392690178,1761814813396,1200.0,0.00025204,2]
[392690179,1761814834922,200.0,0.00025188,15]
[392690180,1761814863020,300.0,0.00025204,2]
[392690181,1761814885546,236.42521309,0.00025105,4]
[392690182,1761814885569,110.94002519,0.00025105,4]
[392690183,1761814887363,165.94931794,0.00025105,2]
[392690184,1761814922654,-1666.0,0.00025205,2]
[392690185,1761814922678,-500.0,0.00025205,2]
[392690186,1761814922701,-500.0,0.00025205,2]
[392690187,1761814922725,-500.0,0.00025205,2]
[392690188,1761814922747,-500.0,0.00025205,2]
[392690189,1761814922771,-500.0,0.00025205,2]
[392690190,1761814922797,-500.0,0.00025205,2]
[392690191,1761814922822,-500.0,0.00025205,2]
[392690192,1761814922848,-500.0,0.00025205,2]
[392690193,1761814922872,-500.0,0.00025205,2]
[392690194,1761814922896,-290.40014595,0.00025205,2]
[392690195,1761814923822,215.85310535,0.00025204,2]
[392690196,1761814923844,84.14689465,0.00025204,2]
[392690198,1761815147249,1414.77,0.00025205,2]
[392690199,1761815227129,-284.59214303,0.00025326,2]
[392690200,1761815227149,-1000.0,0.00025447,30]
[392690201,1761815227167,-200.0,0.00025502,2]
[392690202,1761815227186,-2436.30981022,0.00025502,2]
[392690203,1761815227203,-333.897291,0.00025671,2]
[392690204,1761815227222,-499.82417687,0.00026,2]
[392690205,1761815227240,-205.8312446,0.00026,2]
[392690206,1761815227259,-164.56185992,0.000261,2]
[392690207,1761815227278,-403.80339554,0.00026141,2]
[392690208,1761815227299,-300.0,0.00027104,2]
[392690209,1761815227318,-738.82981312,0.00027105,2]
[392690210,1761815227337,-1998.96424356,0.00027167,2]
[392690211,1761815227356,-159.12,0.00027167,3]
[392690212,1761815227375,-477.4,0.00027167,3]
[392690213,1761815227395,-441.14,0.00027167,10]
[392690214,1761815227414,-500.0,0.00027173,2]
[392690215,1761815227433,-500.0,0.00027173,2]
[392690216,1761815227452,-500.0,0.00027173,2]
[392690217,1761815227478,-500.0,0.00027173,2]
[392690218,1761815227498,-500.0,0.00027173,2]
[392690219,1761815227517,-500.0,0.00027173,2]
[392690220,1761815227538,-500.0,0.00027173,2]
[392690221,1761815227556,-403.53734148,0.00027173,2]
[392690222,1761815227578,-500.0,0.00027173,2]
[392690223,1761815227597,-500.0,0.00027173,2]
[392690224,1761815227618,-500.0,0.00027173,2]
[392690225,1761815227637,-500.0,0.00027173,2]
[392690226,1761815227657,-500.0,0.00027173,2]
[392690227,1761815227677,-500.0,0.00027173,2]
[392690228,1761815227698,-500.0,0.00027173,2]
[392690229,1761815227718,-500.0,0.00027173,2]
[392690230,1761815227737,-489.96381888,0.00027173,2]
[392690231,1761815227758,-500.0,0.00027173,2]
[392690232,1761815227779,-500.0,0.00027173,2]
[392690233,1761815227800,-500.0,0.00027173,2]
[392690234,1761815227822,-500.0,0.00027173,2]
[392690235,1761815227844,-500.0,0.00027173,2]
[392690236,1761815227865,-500.0,0.00027173,2]
[392690237,1761815227884,-500.0,0.00027173,2]
[392690238,1761815227905,-500.0,0.00027173,2]
[392690239,1761815227926,-500.0,0.00027173,2]
[392690240,1761815227946,-500.0,0.00027173,2]
[392690241,1761815227965,-500.0,0.00027173,2]
[392690242,1761815227986,-500.0,0.00027173,2]
[392690243,1761815228006,-500.0,0.00027173,2]
[392690244,1761815228026,-377.40481572,0.00027173,2]
[392690245,1761815228046,-500.0,0.00027173,2]
[392690246,1761815228066,-500.0,0.00027173,2]
[392690247,1761815228087,-500.0,0.00027173,2]
[392690248,1761815228108,-500.0,0.00027173,2]
[392690249,1761815228129,-500.0,0.00027173,2]
[392690250,1761815228150,-500.0,0.00027173,2]
[392690251,1761815228172,-500.0,0.00027173,2]
[392690252,1761815228192,-500.0,0.00027173,2]
[392690253,1761815228220,-500.0,0.00027173,2]
[392690254,1761815228248,-500.0,0.00027173,2]
[392690255,1761815228270,-500.0,0.00027173,2]
[392690256,1761815228290,-500.0,0.00027173,2]
[392690257,1761815228310,-500.0,0.00027173,2]
[392690258,1761815228331,-500.0,0.00027173,2]
[392690259,1761815228352,-500.0,0.00027173,2]
[392690260,1761815228371,-500.0,0.00027173,2]
[392690261,1761815228391,-500.0,0.00027173,2]
[392690262,1761815228414,-500.0,0.00027173,2]
[392690263,1761815228437,-500.0,0.00027173,2]
[392690264,1761815228458,-499.98694225,0.00027173,2]
[392690265,1761815228480,-500.0,0.00027173,2]
[392690266,1761815228502,-500.0,0.00027173,2]
[392690267,1761815228524,-500.0,0.00027173,2]
[392690268,1761815228545,-500.0,0.00027173,2]
[392690269,1761815228567,-500.0,0.00027173,2]
[392690270,1761815228588,-500.0,0.00027173,2]
[392690271,1761815228610,-500.0,0.00027173,2]
[392690272,1761815228630,-311.3267865,0.00027173,2]
[392690273,1761815228651,-500.0,0.00027173,2]
[392690274,1761815228675,-500.0,0.00027173,2]
[392690275,1761815228697,-500.0,0.00027173,2]
[392690276,1761815228719,-500.0,0.00027173,2]
[392690277,1761815228740,-391.64430001,0.00027173,2]
[392690278,1761815228762,-500.0,0.00027173,2]
[392690279,1761815228784,-500.0,0.00027173,2]
[392690280,1761815228804,-500.0,0.00027173,2]
[392690281,1761815228957,-500.0,0.00027173,2]
[392690282,1761815228981,-500.0,0.00027173,2]
[392690283,1761815229003,-500.0,0.00027173,2]
[392690284,1761815229025,-500.0,0.00027173,2]
[392690285,1761815229046,-500.0,0.00027173,2]
[392690286,1761815229067,-373.35771389,0.00027173,2]
[392690287,1761815229088,-500.0,0.00027173,2]
[392690288,1761815229110,-500.0,0.00027173,2]
[392690289,1761815229131,-500.0,0.00027173,2]
[392690290,1761815229153,-500.0,0.00027173,2]
[392690291,1761815229175,-500.0,0.00027173,2]
[392690292,1761815229196,-500.0,0.00027173,2]
[392690293,1761815229217,-500.0,0.00027173,2]
[392690294,1761815229240,-500.0,0.00027173,2]
[392690295,1761815229262,-500.0,0.00027173,2]
[392690296,1761815229284,-500.0,0.00027173,2]
[392690297,1761815229304,-500.0,0.00027173,2]
[392690298,1761815229325,-500.0,0.00027173,2]
[392690299,1761815229347,-200.0,0.00027173,2]
[392690300,1761815229368,-500.0,0.00027173,2]
[392690301,1761815229388,-500.0,0.00027173,2]
[392690302,1761815229408,-423.48075405,0.00027173,2]
[392690303,1761815229429,-500.0,0.00027173,2]
[392690304,1761815229450,-500.0,0.00027173,2]
[392690305,1761815229470,-500.0,0.00027176,2]
[392690306,1761815229489,-185.46168371,0.00027176,2]
[392690307,1761815229508,-96334.30012965,0.00027177,2]
[392690308,1761815235069,-80766.16087822,0.00027177,2]
[392690309,1761815235090,-151.30724062,0.00027181,2]
[392690310,1761815235110,-151.0,0.00027181,2]
[392690311,1761815235134,-151.0,0.00027181,2]
[392690312,1761815235157,-151.0,0.00027181,2]
[392690313,1761815235178,-151.0,0.00027181,2]
[392690314,1761815235197,-151.0,0.00027181,2]
[392690315,1761815235216,-151.0,0.00027181,2]
[392690316,1761815235236,-151.0,0.00027181,2]
[392690317,1761815235256,-151.0,0.00027181,2]
[392690318,1761815235277,-151.0,0.00027181,2]
[392690319,1761815235296,-151.0,0.00027181,2]
[392690320,1761815235316,-151.0,0.00027181,2]
[392690321,1761815235339,-151.0,0.00027181,2]